Workbook

Sheet паспорт
A1: ПАТ "УКРТРАНСГАЗ" | G1: ПАСПОРТ ФІЗИКО-ХІМІЧНИХ ПОКАЗНИКІВ ПРИРОДНОГО ГАЗУ № 855
A2: Філія "УМГ "Черкаситрансгаз" | G2: переданого Кременчуцьким ЛВУМГ та прийнятого ПАТ "Полтавагаз", ТОВ "Епіцентр К", ТОВ "Форт", ДП "Укравтогаз"
A3: Кременчуцьке ЛВУМГ | G3: Маршрут № 855
A4: Вимірювальна хіміко-аналітична лабораторія
A5: Кременчуцького промислового майданчика
A6: Свідоцтво № 0612 КФ від 30.12.15р. чинне до 20.06.19р. | K6: по газопроводу "Диканька-Кременчук-Кривий Ріг" | V6: за період з | X6: 2017-03-01 | Z6: по | AA6: 2017-03-31
A8: Число місяця | B8: Компонентний склад, % мол. | N8: Фізико-хімічні показники газу обчислені на основі компонентного складу, 101,325 кПа | X8: Температура точки роси за вологою (Р = 3.92 МПа), °С | Y8: Температура точки роси за вуглеводнями, °С | Z8: Вміст сірководню, г/м3 | AA8: Вміст меркаптанової сірки, г/м3 | AB8: Вміст механічних домішок, г/м3
N9: Густина абсолютна, кг/м3,при 20 °С, | O9: Температура вимірювання/згоряння при 20/25°С
B10: метан, С1 | C10: етан, С2 | D10: пропан, С3 | E10: ізо-бутан, і-С4 | F10: н-бутан, н-С4 | G10: нео-пентан, нео-С5 | H10: ізо-пентан, і-С5 | I10: н-пентан, н-С5 | J10: гексани та вищі, С6+ | K10: кисень, О2 | L10: азот, N2 | M10: діоксид вуглецю, CО2 | O10: Теплота згоряння нижча | R10: Теплота згоряння вища | U10: Число Воббе вище
O11: ккал/м³ | P11: МДж/м³ | Q11: кВт⋅год/м³ | R11: ккал/м³ | S11: МДж/м³ | T11: кВт⋅год/м³ | U11: ккал/м³ | V11: МДж/м³ | W11: кВт⋅год/м³
A12: 1 | B12: 91.451 | C12: 4.2996 | D12: 1.0475 | E12: 0.117 | F12: 0.1816 | G12: 0.0041 | H12: 0.0509 | I12: 0.0432 | J12: 0.0725 | K12: 0.0013 | L12: 1.7126 | M12: 1.0187 | N12: 0.7358 | O12: =P12*238.8459 -> 8266.456599 | P12: 34.61 | Q12: =P12/3.6 -> 9.613888889 | R12: =S12*238.8459 -> 9159.740265 | S12: 38.35 | T12: =S12/3.6 -> 10.65277778 | U12: 11718 | V12: 49.06 | W12: =V12/3.6 -> 13.62777778 | X12: -9.1 | AC12: =SUM(B12:M12)+$K$43+$N$43 -> 100
A13: 2 | O13: =P13*238.8459 -> 8266.456599 | P13: 34.61 | Q13: 9.613888889 | R13: =S13*238.8459 -> 9159.740265 | S13: 38.35 | T13: 10.65277778 | AC13: 0
A14: 3 | O14: 8266.456599 | P14: 34.61 | Q14: 9.613888889 | R14: 9159.740265 | S14: 38.35 | T14: 10.65277778 | AC14: 0 | AD14: =IF(AC14=100,"ОК"," ") -> 
A15: 4 | O15: 8266.456599 | P15: 34.61 | Q15: 9.613888889 | R15: 9159.740265 | S15: 38.35 | T15: 10.65277778 | AC15: 0 | AD15: =IF(AC15=100,"ОК"," ") -> 
A16: 5 | O16: 8266.456599 | P16: 34.61 | Q16: 9.613888889 | R16: 9159.740265 | S16: 38.35 | T16: 10.65277778 | AC16: 0
A17: 6 | O17: 8266.456599 | P17: 34.61 | Q17: 9.613888889 | R17: 9159.740265 | S17: 38.35 | T17: 10.65277778 | AC17: 0
A18: 7 | B18: 91.0312 | C18: 4.5399 | D18: 1.1003 | E18: 0.1186 | F18: 0.1882 | G18: 0.004 | H18: 0.0509 | I18: 0.0428 | J18: 0.0596 | K18: 0.0012 | L18: 1.7873 | M18: 1.076 | N18: 0.7387 | O18: 8276.010435 | P18: 34.65 | Q18: 9.625 | R18: 9166.905642 | S18: 38.38 | T18: 10.66111111 | U18: 11706 | V18: 49.01 | W18: =V18/3.6 -> 13.61388889 | X18: -9.4 | AC18: 100 | AD18: ОК
A19: 8 | O19: 8276.010435 | P19: 34.65 | Q19: 9.625 | R19: 9166.905642 | S19: 38.38 | T19: 10.66111111 | AC19: 0
A20: 9 | O20: 8276.010435 | P20: 34.65 | Q20: 9.625 | R20: 9166.905642 | S20: 38.38 | T20: 10.66111111 | AC20: 0
A21: 10 | O21: 8276.010435 | P21: 34.65 | Q21: =P21/3.6 -> 9.625 | R21: 9166.905642 | S21: 38.38 | T21: =S21/3.6 -> 10.66111111 | AC21: 0
A22: 11 | O22: 8276.010435 | P22: 34.65 | Q22: 9.625 | R22: 9166.905642 | S22: 38.38 | T22: 10.66111111 | AC22: 0
A23: 12 | O23: 8276.010435 | P23: 34.65 | Q23: 9.625 | R23: 9166.905642 | S23: 38.38 | T23: 10.66111111 | AC23: 0
A24: 13 | O24: 8276.010435 | P24: 34.65 | Q24: 9.625 | R24: 9166.905642 | S24: 38.38 | T24: 10.66111111 | AC24: 0
A25: 14 | O25: 8276.010435 | P25: 34.65 | Q25: 9.625 | R25: 9166.905642 | S25: 38.38 | T25: 10.66111111 | AC25: 0
A26: 15 | B26: 91.1904 | C26: 4.4888 | D26: 1.0735 | E26: 0.1161 | F26: 0.1918 | G26: 0.004 | H26: 0.0511 | I26: 0.0438 | J26: 0.0587 | K26: 0.0013 | L26: 1.7439 | M26: 1.0366 | N26: 0.7374 | O26: 8276.010435 | P26: 34.65 | Q26: 9.625 | R26: 9169.294101 | S26: 38.39 | T26: 10.66388889 | U26: 11717 | V26: 49.06 | W26: 13.62777778 | X26: -9.3 | AC26: 100 | AD26: ОК
A27: 16 | O27: 8276.010435 | P27: 34.65 | Q27: =P27/3.6 -> 9.625 | R27: 9169.294101 | S27: 38.39 | T27: =S27/3.6 -> 10.66388889 | AC27: 0
A28: 17 | O28: 8276.010435 | P28: 34.65 | Q28: 9.625 | R28: 9169.294101 | S28: 38.39 | T28: 10.66388889 | AC28: 0
A29: 18 | O29: 8276.010435 | P29: 34.65 | Q29: 9.625 | R29: 9169.294101 | S29: 38.39 | T29: 10.66388889 | AC29: 0
A30: 19 | O30: 8276.010435 | P30: 34.65 | Q30: 9.625 | R30: 9169.294101 | S30: 38.39 | T30: 10.66388889 | AC30: 0
A31: 20 | O31: 8276.010435 | P31: 34.65 | Q31: 9.625 | R31: 9169.294101 | S31: 38.39 | T31: 10.66388889 | AC31: 0 | AD31: =IF(AC31=100,"ОК"," ") -> 
A32: 21 | O32: 8276.010435 | P32: 34.65 | Q32: 9.625 | R32: 9169.294101 | S32: 38.39 | T32: 10.66388889 | AC32: 0
A33: 22 | B33: 90.8677 | C33: 4.5587 | D33: 1.1106 | E33: 0.1222 | F33: 0.1952 | G33: 0.0042 | H33: 0.0527 | I33: 0.044 | J33: 0.0584 | K33: 0.0016 | L33: 1.9199 | M33: 1.0648 | N33: 0.7397 | O33: 8271.233517 | P33: 34.63 | Q33: 9.619444444 | R33: 9162.128724 | S33: 38.36 | T33: 10.65555556 | U33: 11691 | V33: 48.95 | W33: 13.59722222 | X33: -9.2 | AC33: 100 | AD33: ОК
A34: 23 | O34: 8271.233517 | P34: 34.63 | Q34: =P34/3.6 -> 9.619444444 | R34: 9162.128724 | S34: 38.36 | T34: =S34/3.6 -> 10.65555556 | AC34: 0 | AD34: =IF(AC34=100,"ОК"," ") -> 
A35: 24 | O35: 8271.233517 | P35: 34.63 | Q35: 9.619444444 | R35: 9162.128724 | S35: 38.36 | T35: 10.65555556 | AC35: 0
A36: 25 | O36: 8271.233517 | P36: 34.63 | Q36: 9.619444444 | R36: 9162.128724 | S36: 38.36 | T36: 10.65555556 | AC36: 0
A37: 26 | O37: 8271.233517 | P37: 34.63 | Q37: 9.619444444 | R37: 9162.128724 | S37: 38.36 | T37: =S37/3.6 -> 10.65555556 | AC37: 0
A38: 27 | O38: 8271.233517 | P38: 34.63 | Q38: 9.619444444 | R38: 9162.128724 | S38: 38.36 | T38: 10.65555556 | AC38: 0
A39: 28 | B39: 90.8012 | C39: 4.5964 | D39: 1.1035 | E39: 0.1223 | F39: 0.1939 | G39: 0.0043 | H39: 0.0525 | I39: 0.0434 | J39: 0.0546 | K39: 0.0011 | L39: 1.9358 | M39: 1.091 | N39: 0.74 | O39: 8268.845058 | P39: 34.62 | Q39: 9.616666667 | R39: 9157.351806 | S39: 38.34 | T39: 10.65 | U39: 11684 | V39: 48.92 | W39: 13.58888889 | X39: -9.3 | Z39: 0.002 | AA39: 0.0023 | AB39: відсутн | AC39: 100 | AD39: ОК
A40: 29 | O40: 8268.845058 | P40: 34.62 | Q40: 9.616666667 | R40: 9157.351806 | S40: 38.34 | T40: 10.65 | AC40: 0
A41: 30 | O41: 8268.845058 | P41: 34.62 | Q41: 9.616666667 | R41: 9157.351806 | S41: 38.34 | T41: 10.65 | AC41: 0
A42: 31 | O42: 8268.845058 | P42: 34.62 | Q42: 9.616666667 | R42: 9157.351806 | S42: 38.34 | T42: 10.65 | AC42: 0
A43: Рівень одоризації відповідає чинним нормативним документам | O43: =AVERAGE(O12:O42) -> 8272.312176 | P43: =AVERAGE(P12:P42) -> 34.63451613 | Q43: 9.620698925 | R43: =9163 -> 9163 | S43: =38.36 -> 38.36 | T43: 10.65761649
H44: Середньозважене значення теплоти згоряння:
B46: Головний інженер Кременчуцького ЛВУМГ | N46: Грицик О. М. | Z46: 2017-04-03
C47: Підрозділу підприємства, якому підпорядкована лабораторія | M47: прізвище | V47: підпис | Z47: дата
B48: Інженер-лаборант ВХАЛ | N48: Голованова Ж. К. | Z48: 2017-04-03
C49: Лабораторія, де здійснювалось вимірювання газу | M49: прізвище | V49: підпис | Z49: дата
B50: Провідний економіст із збуту | N50: Кривулькін І. В. | Z50: 2017-04-03
C51: Підрозділу, відповідального за облік газу за маршрутом | M51: прізвище | V51: підпис | Z51: дата

Sheet додаток
A2: Додаток до Паспорту фізико-хімічних показників природного газу № 855
A4: Область | B4: ГРС, прямий споживач | C4: Cередньозважене значення вищої теплоти згоряння
C5: МДж/м³ | D5: ккал/м³ | E5: кВт*год./м³
A6: Полтавська область | B6: ГРС Полтава - 1 | C6: 38.36412192 | D6: 9163.113228 | E6: 10.65670053
B7: ТОВ "Епіцентр" | C7: 38.36525557 | D7: 9163.383994 | E7: 10.65701544
B8: ТОВ " Форт" | C8: 38.3668809 | D8: 9163.772198 | E8: 10.65746692
B9: ДП "Укравтогаз" АГНКС-1 м. Полтава | C9: 38.36809428 | D9: 9164.06201 | E9: 10.65780397
B10: ДП "Укравтогаз" АГНКС-2 м. Полтава | C10: 38.36758043 | D10: 9163.939278 | E10: 10.65766123
A11: Середньозважене значення вищої теплоти згоряння по маршруту № 855 | C11: 38.36413867 | D11: 9163.117229 | E11: 10.65670519
A15: Головний інженер Кременчуцького ЛВУМГ | D15: Грицик О. М. | F15: 2017-04-03
A16: Підрозділу підприємства, якому підпорядкована лабораторія | D16: прізвище | E16: підпис | F16: дата
A17: Інженер-лаборант ВХАЛ | D17: Голованова Ж. К. | F17: 2017-04-03
A18: Лабораторія, де здійснювалось вимірювання газу | D18: прізвище | E18: підпис | F18: дата
A19: Провідний економіст із збуту | D19: Кривулькін І. В. | F19: 2017-04-03
A20: Підрозділу, відповідального за облік газу за маршрутом | D20: прізвище | E20: підпис | F20: дата

Sheet variablesList (hidden)
A1: 3 | B1: x:\gaysin | C1: 10, 11, 24, 25, 127, 128, 132, 180, 207, 215 | D1: x:\
B2: x:\Illinci
B3: x:\Talne
